bitfinex-derivatives/quotes_BTCF0:USTF0_20250508
["timestamp","ask_amount","ask_price","bid_price","bid_amount"]
[1746727486484,0.30616883,101110.0,101100.0,1.29731828]
[1746727486780,0.00848463,101110.0,101100.0,1.35911828]
[1746727486985,0.2067746,101110.0,101100.0,1.35911828]
[1746727487178,0.009,101110.0,101100.0,1.94507227]
[1746727487383,0.005,101110.0,101100.0,2.34507227]
[1746727487889,0.005,101110.0,101100.0,2.44398027]
[1746727488084,0.005,101110.0,101100.0,2.59398027]
[1746727488290,0.440045,101130.0,101120.0,0.36780909]
[1746727488488,0.440045,101130.0,101120.0,0.9977151]
[1746727488677,0.3906075,101130.0,101120.0,1.0600151]
[1746727488883,0.3906075,101130.0,101120.0,1.23006909]
[1746727489079,0.3906075,101130.0,101120.0,1.0600151]
[1746727489284,0.1987355,101130.0,101120.0,1.0600151]
[1746727489481,0.1987355,101130.0,101120.0,1.26176909]
[1746727490185,0.1987355,101130.0,101120.0,1.42976909]
[1746727491294,0.1987355,101130.0,101120.0,1.43716189]
[1746727491995,0.1997355,101130.0,101120.0,1.43716189]
[1746727492597,0.2022055,101130.0,101120.0,1.43716189]
[1746727493792,0.00447,101130.0,101120.0,1.35880189]
[1746727493992,0.00347,101130.0,101120.0,1.93334189]
[1746727494189,0.00347,101130.0,101120.0,2.31334189]
[1746727494395,0.2012055,101130.0,101120.0,2.31334189]
[1746727494595,0.2012055,101130.0,101120.0,2.31534189]
[1746727495097,0.00347,101130.0,101120.0,2.31534189]
[1746727495393,0.00347,101130.0,101120.0,1.89944189]
[1746727496198,0.2012055,101130.0,101120.0,1.89944189]
[1746727496594,0.2012055,101130.0,101120.0,1.74280189]
[1746727496894,0.002,101140.0,101130.0,0.1977355]
[1746727497099,0.199716,101140.0,101130.0,0.79038949]
[1746727498197,0.199716,101140.0,101130.0,0.95838949]
[1746727498395,0.002,101140.0,101130.0,1.48428949]
[1746727498699,0.199716,101140.0,101130.0,2.03434348]
[1746727498894,0.002,101140.0,101130.0,2.19094348]
[1746727499093,0.03508396,101150.0,101140.0,0.197716]
[1746727499293,0.23278036,101150.0,101140.0,0.87486999]
[1746727499594,0.23278036,101150.0,101140.0,0.704816]
[1746727499799,0.29488036,101150.0,101140.0,0.87486999]
[1746727500296,0.29488036,101150.0,101140.0,0.87786999]
[1746727501201,0.29488036,101150.0,101140.0,1.04786999]
[1746727502300,0.29488036,101150.0,101140.0,0.87986999]
[1746727503700,0.29488036,101150.0,101140.0,0.89986999]
[1746727503907,0.29488036,101150.0,101140.0,1.20986999]
[1746727504798,0.29488036,101150.0,101140.0,1.039816]
[1746727504990,0.29488036,101150.0,101140.0,1.20986999]
[1746727507806,0.29488036,101150.0,101140.0,1.18986999]
[1746727507994,0.29488036,101150.0,101140.0,0.595116]
[1746727508198,0.46288036,101150.0,101140.0,0.665116]
[1746727509201,0.29488036,101150.0,101140.0,0.665116]
[1746727509407,0.29488036,101150.0,101140.0,0.664116]
[1746727509607,0.29488036,101150.0,101140.0,0.662116]
[1746727509907,0.29488036,101150.0,101140.0,0.660116]
[1746727510808,0.29488036,101150.0,101140.0,0.668356]
[1746727513007,0.09718396,101150.0,101140.0,0.83840999]
[1746727513307,0.29488036,101150.0,101140.0,0.89930999]
[1746727513507,0.09718396,101150.0,101140.0,0.89930999]
[1746727514104,0.06718396,101150.0,101140.0,0.93120999]
[1746727514304,0.23278036,101150.0,101140.0,0.93120999]
[1746727514706,0.29648036,101150.0,101140.0,0.93120999]
[1746727515212,0.29648036,101150.0,101140.0,1.09920999]
[1746727515413,0.09878396,101150.0,101140.0,1.09920999]
[1746727515611,0.00248396,101150.0,101140.0,1.46920999]
[1746727515812,0.001,101150.0,101140.0,1.66920999]
[1746727516013,0.001,101150.0,101140.0,2.08510999]
[1746727516314,0.001,101150.0,101140.0,1.92510999]
[1746727516712,0.001,101150.0,101140.0,1.94004534]
[1746727516908,0.1986964,101150.0,101140.0,1.94004534]
[1746727517216,0.2292964,101150.0,101140.0,1.86380534]
[1746727517407,0.2624964,101150.0,101140.0,1.42413535]
[1746727517608,0.46495039,101150.0,101140.0,0.61004]
[1746727518202,0.63295039,101150.0,101140.0,0.44204]
[1746727518812,1.45162039,101150.0,101140.0,0.48204]
[1746727519017,1.45162039,101150.0,101140.0,0.48004]
[1746727519313,1.45262039,101150.0,101140.0,0.43904]
[1746727520211,1.28462039,101150.0,101140.0,0.43904]
[1746727520416,1.1195664,101150.0,101140.0,0.636756]
[1746727520616,1.1185664,101150.0,101140.0,0.83730999]
[1746727520811,1.1245664,101150.0,101140.0,0.86860999]
[1746727521209,1.22379236,101150.0,101140.0,0.86860999]
[1746727521909,1.22079236,101150.0,101140.0,0.86760999]
[1746727522110,0.39912236,101150.0,101140.0,0.86760999]
[1746727522310,0.39612236,101150.0,101140.0,0.86760999]
[1746727522510,0.39712236,101150.0,101140.0,0.86760999]
[1746727522819,0.69512236,101150.0,101140.0,0.86760999]
[1746727524717,0.69512236,101150.0,101140.0,0.697556]
[1746727524914,0.69512236,101150.0,101140.0,0.86760999]
[1746727524915,0.5958964,101150.0,101140.0,0.86760999]
[1746727525218,0.5958964,101150.0,101140.0,1.03560999]
[1746727526112,0.5958964,101150.0,101140.0,0.86760999]
[1746727527215,0.3982,101150.0,101140.0,0.86760999]
[1746727527418,0.03624,101160.0,101150.0,0.1976964]
[1746727527617,0.03122594,101160.0,101150.0,1.63905039]
[1746727527920,0.03122594,101160.0,101150.0,1.82414022]
[1746727528117,0.01553594,101160.0,101150.0,1.99214022]
[1746727528518,0.01553594,101160.0,101150.0,1.99314022]
[1746727528920,0.01553594,101160.0,101150.0,1.97805039]
[1746727529316,0.01553594,101160.0,101150.0,1.98005039]
[1746727530322,0.21321284,101160.0,101150.0,1.98005039]
[1746727530519,0.21321284,101160.0,101150.0,1.8099964]
[1746727530724,0.27521284,101160.0,101150.0,1.9664364]
[1746727530921,0.27521284,101160.0,101150.0,2.13649039]
[1746727531323,0.27521284,101160.0,101150.0,1.96849039]
[1746727531723,0.27521284,101160.0,101150.0,1.96649039]
[1746727532426,0.27521284,101160.0,101150.0,1.96549039]
[1746727532825,0.27521284,101160.0,101150.0,1.54959039]
[1746727533117,0.2596769,101160.0,101150.0,1.54959039]
[1746727533524,0.062,101160.0,101150.0,1.54959039]
[1746727535028,0.0304,101160.0,101150.0,1.54959039]
[1746727535229,0.0304,101160.0,101150.0,1.71759039]
[1746727536127,0.0304,101160.0,101150.0,1.54959039]
[1746727536424,0.0304,101160.0,101150.0,1.54955039]
[1746727537727,0.05,101170.0,101160.0,0.1976769]
[1746727537923,0.0177,101170.0,101160.0,1.14233089]
[1746727538428,0.2153574,101170.0,101160.0,0.9722769]
[1746727538619,0.2786574,101170.0,101160.0,0.9722769]
[1746727538819,0.2806574,101170.0,101160.0,0.9722769]
[1746727539128,0.2679574,101170.0,101160.0,0.9722769]
[1746727541127,0.2679574,101170.0,101160.0,1.14233089]
[1746727541528,0.2679574,101170.0,101160.0,1.150362]
[1746727541729,0.2679574,101170.0,101160.0,0.98030801]
[1746727543222,0.2679574,101170.0,101160.0,0.94900801]
[1746727543423,0.2679574,101170.0,101160.0,0.59900801]
[1746727543924,0.2679574,101170.0,101160.0,0.63170801]
[1746727545038,0.2679574,101170.0,101160.0,0.70986801]
[1746727545528,0.2679574,101170.0,101160.0,0.67716801]
[1746727545728,0.43801139,101170.0,101160.0,0.43896]
[1746727546123,0.60601139,101170.0,101160.0,0.43896]
[1746727546319,1.42468139,101170.0,101160.0,0.47026]
[1746727549034,1.52390735,101170.0,101160.0,0.47026]
[1746727550836,1.53960735,101170.0,101160.0,0.47026]
[1746727551136,1.54633735,101170.0,101160.0,0.47026]
[1746727551339,1.54633735,101170.0,101160.0,0.6679369]
[1746727551636,1.37628336,101170.0,101160.0,0.47026]
[1746727551836,1.37628336,101170.0,101160.0,0.6679369]
[1746727552037,1.54633735,101170.0,101160.0,0.6679369]
[1746727552849,1.54633735,101170.0,101160.0,0.47026]
[1746727556653,1.57114384,101170.0,101160.0,0.47026]
[1746727557052,1.56814384,101170.0,101160.0,0.47026]
[1746727557256,1.56914384,101170.0,101160.0,0.47026]
[1746727557754,1.57114384,101170.0,101160.0,0.47026]
[1746727557955,1.56914384,101170.0,101160.0,0.47026]
[1746727558152,1.56914384,101170.0,101160.0,0.47226]
[1746727558852,1.57114384,101170.0,101160.0,0.47026]
[1746727559260,1.59616581,101170.0,101160.0,0.47026]
[1746727559554,1.59616581,101170.0,101160.0,0.43896]
[1746727560350,1.59616581,101170.0,101160.0,0.6366369]
[1746727560555,1.42611182,101170.0,101160.0,0.6989369]
[1746727560750,1.39571182,101170.0,101160.0,0.86899089]
[1746727560951,1.36281182,101170.0,101160.0,0.90129089]
[1746727561155,1.19481182,101170.0,101160.0,0.90129089]
[1746727561454,1.22801182,101170.0,101160.0,0.90129089]
[1746727561655,1.22801182,101170.0,101160.0,0.7312369]
[1746727563358,1.0789574,101170.0,101160.0,0.7312369]
[1746727563859,1.1097574,101170.0,101160.0,1.1212369]
[1746727564057,1.27981139,101170.0,101160.0,0.47028]
[1746727564957,1.27981139,101170.0,101160.0,0.3922]
[1746727565152,1.44781139,101170.0,101160.0,0.43888]
[1746727565758,1.44781139,101170.0,101160.0,0.07808]
[1746727566159,0.1976769,101160.0,101150.0,0.39856263]
[1746727566357,0.46103089,101160.0,101150.0,0.47664263]
[1746727566753,0.46103089,101160.0,101150.0,0.3908]
[1746727566958,0.1976964,101150.0,101140.0,0.43888]
[1746727567155,0.42895039,101150.0,101140.0,0.43888]
[1746727567354,0.42895039,101150.0,101140.0,0.47188]
[1746727568259,0.59795039,101150.0,101140.0,0.47388]
[1746727569062,0.59795039,101150.0,101140.0,0.47188]
[1746727569464,1.41662039,101150.0,101140.0,0.47188]
[1746727570365,1.0785664,101150.0,101140.0,0.702396]
[1746727570663,1.0173664,101150.0,101140.0,0.90404999]
[1746727570861,0.81967,101150.0,101140.0,0.90404999]
[1746727571061,0.81967,101150.0,101140.0,0.99212999]
[1746727571263,0.81967,101150.0,101140.0,1.41012999]
[1746727571463,0.9196817,101150.0,101140.0,1.41012999]
[1746727571767,0.2987081,101150.0,101140.0,1.33204999]
[1746727571954,0.2987081,101150.0,101140.0,1.240076]
[1746727572154,0.2987081,101150.0,101140.0,1.072076]
[1746727573560,0.3234181,101150.0,101140.0,1.072076]
[1746727574574,0.3234181,101150.0,101140.0,0.79628]
[1746727574575,0.49347209,101150.0,101140.0,0.79628]
[1746727574869,0.55787209,101150.0,101140.0,0.783996]
[1746727575562,0.45786039,101150.0,101140.0,0.783996]
[1746727575964,0.45786039,101150.0,101140.0,0.55468]
[1746727576168,0.45786039,101150.0,101140.0,0.50468]
[1746727576770,0.45786039,101150.0,101140.0,0.702396]
[1746727577565,0.2878064,101150.0,101140.0,0.702396]
[1746727578966,0.2878064,101150.0,101140.0,0.912396]
[1746727580159,0.2878064,101150.0,101140.0,0.2758]
[1746727580160,0.81866039,101150.0,101140.0,0.2758]
[1746727580365,0.197716,101140.0,101130.0,0.43888]
[1746727580667,0.54154999,101140.0,101130.0,0.47148]
[1746727581261,1.52821999,101140.0,101130.0,0.47148]
[1746727581466,1.280086,101140.0,101130.0,0.68016636]
[1746727581668,1.280086,101140.0,101130.0,0.91392035]
[1746727581669,1.184386,101140.0,101130.0,0.91392035]
[1746727582161,1.016386,101140.0,101130.0,0.91392035]
[1746727582672,1.016386,101140.0,101130.0,0.74386636]
[1746727583274,1.1163977,101140.0,101130.0,0.74386636]
[1746727584069,1.1321177,101140.0,101130.0,0.74386636]
[1746727584465,1.1321177,101140.0,101130.0,0.74486636]
[1746727584666,0.9344017,101140.0,101130.0,0.91792035]
[1746727584975,0.9344017,101140.0,101130.0,1.48797434]
[1746727585172,0.9344017,101140.0,101130.0,1.85515498]
[1746727585375,0.9344017,101140.0,101130.0,1.85715498]
[1746727585866,0.1157317,101140.0,101130.0,1.85715498]
[1746727586067,0.1157317,101140.0,101130.0,1.8570485]
[1746727587378,0.01572,101140.0,101130.0,1.8570485]
[1746727587572,0.02471,101150.0,101140.0,0.197716]
[1746727587762,0.02471,101150.0,101140.0,1.38974999]
[1746727587970,0.02471,101150.0,101140.0,1.50396489]
[1746727588169,0.02471,101150.0,101140.0,1.67196489]
[1746727588369,0.02471,101150.0,101140.0,1.57309689]
[1746727588775,0.02571,101150.0,101140.0,1.57309689]
[1746727590277,0.02671,101150.0,101140.0,1.57309689]
[1746727590670,0.2244064,101150.0,101140.0,1.4030429]
[1746727590971,0.2244064,101150.0,101140.0,1.3249629]
[1746727591179,0.2860064,101150.0,101140.0,1.031616]
[1746727592778,0.2860064,101150.0,101140.0,1.20166999]
[1746727593175,0.2860064,101150.0,101140.0,1.031616]
[1746727593375,0.3040464,101150.0,101140.0,1.031616]
[1746727595581,0.3040464,101150.0,101140.0,1.04702945]
[1746727596478,0.3040464,101150.0,101140.0,1.04698636]
[1746727597284,0.3040464,101150.0,101140.0,1.12502636]
[1746727597884,0.3840464,101150.0,101140.0,1.12502636]
[1746727598080,0.3840464,101150.0,101140.0,1.109656]
[1746727598477,0.6740464,101150.0,101140.0,0.699656]
[1746727598987,0.84410039,101150.0,101140.0,0.46944]
[1746727599182,1.01210039,101150.0,101140.0,0.46944]
[1746727599378,0.197716,101140.0,101130.0,0.43884]
[1746727599686,0.87036999,101140.0,101130.0,0.46934]
[1746727599870,0.87036999,101140.0,101130.0,0.07804]
[1746727600076,1.03836999,101140.0,101130.0,0.07804]
[1746727600571,1.03836999,101140.0,101130.0,0.07904]
[1746727600781,1.28836999,101140.0,101130.0,0.001]
[1746727601092,1.74804599,101140.0,101130.0,0.002]
[1746727601281,2.56671599,101140.0,101130.0,0.002]
[1746727601582,2.31671599,101140.0,101130.0,0.002]
[1746727602483,2.41672769,101140.0,101130.0,0.002]
[1746727605675,2.31785169,101140.0,101130.0,0.002]
[1746727605875,2.03509169,101140.0,101130.0,0.002]
[1746727606079,2.03509169,101140.0,101130.0,0.2297355]
[1746727606286,2.03509169,101140.0,101130.0,0.032]
[1746727606789,2.04185169,101140.0,101130.0,0.032]
[1746727606982,2.14072769,101140.0,101130.0,0.002]
[1746727607183,2.50152769,101140.0,101130.0,0.002]
[1746727607989,2.52663732,101140.0,101130.0,0.002]
[1746727610690,1.81886733,101140.0,101130.0,0.5605355]
[1746727610887,1.81886733,101140.0,101130.0,0.79418949]
[1746727611190,1.65086733,101140.0,101130.0,0.6241355]
[1746727611389,1.62066733,101140.0,101130.0,0.6241355]
[1746727611690,1.62066733,101140.0,101130.0,0.79418949]
[1746727612485,1.62066733,101140.0,101130.0,0.6241355]
[1746727613284,1.65366733,101140.0,101130.0,0.6241355]
[1746727614788,1.36055133,101140.0,101130.0,1.45814348]
[1746727614988,1.36055133,101140.0,101130.0,2.2434822]
[1746727614989,0.95055133,101140.0,101130.0,2.2434822]
[1746727615289,0.95055133,101140.0,101130.0,2.4114822]
[1746727615589,0.13188133,101140.0,101130.0,2.1614822]
[1746727616391,0.00676,101140.0,101130.0,2.1614822]
[1746727616986,0.00676,101140.0,101130.0,1.99142821]
[1746727617994,0.00676,101140.0,101130.0,1.97608949]
[1746727619187,0.204476,101140.0,101130.0,1.97608949]
[1746727619387,0.204476,101140.0,101130.0,1.89808949]
[1746727619587,0.204476,101140.0,101130.0,1.97608949]
[1746727620283,0.204476,101140.0,101130.0,1.73008949]
[1746727620593,0.204476,101140.0,101130.0,1.80808949]
[1746727620895,0.204476,101140.0,101130.0,1.5600355]
[1746727621090,0.204476,101140.0,101130.0,1.80808949]
[1746727622595,0.00676,101140.0,101130.0,1.80808949]
[1746727622990,0.00676,101140.0,101130.0,1.39218949]
[1746727623192,0.204476,101140.0,101130.0,1.39218949]
[1746727624397,0.00676,101140.0,101130.0,1.39218949]
[1746727624590,0.00676,101140.0,101130.0,1.56224348]
[1746727625190,0.204476,101140.0,101130.0,1.73024348]
[1746727625391,0.204476,101140.0,101130.0,1.56018949]
[1746727625901,0.204476,101140.0,101130.0,1.97608949]
[1746727626099,0.204476,101140.0,101130.0,1.80808949]
[1746727628092,0.00676,101140.0,101130.0,1.80808949]
[1746727628691,0.00676,101140.0,101130.0,1.97814348]
[1746727629092,0.00676,101140.0,101130.0,2.14614348]
[1746727629401,0.00676,101140.0,101130.0,2.22410348]
[1746727630093,0.00676,101140.0,101130.0,2.05610348]
[1746727630288,0.204476,101140.0,101130.0,2.05610348]
[1746727631403,0.00676,101140.0,101130.0,2.05610348]
[1746727634705,0.204476,101140.0,101130.0,2.05606348]
[1746727635092,0.204476,101140.0,101130.0,1.88600949]
[1746727636705,0.00676,101140.0,101130.0,1.88600949]
[1746727637997,0.204476,101140.0,101130.0,1.88600949]
[1746727638705,0.00676,101140.0,101130.0,2.05606348]
[1746727639309,0.00676,101140.0,101130.0,2.07100609]
[1746727639607,0.01804,101150.0,101130.0,2.16988208]
[1746727639901,0.01804,101150.0,101140.0,0.82286999]
[1746727640100,0.01804,101150.0,101140.0,1.3778126]
[1746727640306,0.01804,101150.0,101140.0,1.36286999]
[1746727641308,0.01904,101150.0,101140.0,1.3778728]
[1746727641606,0.01904,101150.0,101140.0,1.37787827]
[1746727642808,0.02004,101150.0,101140.0,1.37787827]
[1746727643405,0.02004,101150.0,101140.0,1.37790067]
[1746727643903,0.02004,101150.0,101140.0,1.79380067]
[1746727645208,0.02004,101150.0,101140.0,1.94968067]
[1746727645597,0.0926,101160.0,101140.0,1.75296467]
[1746727645797,0.0034836,101170.0,101160.0,0.1976769]
[1746727646004,0.0649,101170.0,101160.0,1.71309556]
[1746727646309,0.12612133,101180.0,101170.0,0.1976574]
[1746727646607,0.12612133,101180.0,101170.0,1.38644207]
[1746727648108,0.15732133,101180.0,101170.0,1.38644207]
[1746727648807,0.38685913,101180.0,101170.0,1.01738808]
[1746727649012,0.41715913,101180.0,101170.0,1.09630808]
[1746727649815,0.2920378,101180.0,101170.0,1.09630808]
[1746727650514,0.2920378,101180.0,101170.0,1.09672455]
[1746727650710,0.2920378,101180.0,101170.0,1.26677854]
[1746727651012,0.2920378,101180.0,101170.0,1.09672455]
[1746727651716,0.2920378,101180.0,101170.0,1.0812774]
[1746727651912,0.2930378,101180.0,101170.0,1.0802774]
[1746727652217,0.2940378,101180.0,101170.0,1.0792774]
[1746727653215,0.2940378,101180.0,101170.0,1.24933139]
[1746727653816,0.2940378,101180.0,101170.0,1.26477901]
[1746727654316,0.2940378,101180.0,101170.0,1.24933139]
[1746727656912,0.2940378,101180.0,101170.0,1.0792774]
[1746727657315,0.2940378,101180.0,101170.0,1.24933139]
[1746727658415,0.2940378,101180.0,101170.0,1.26477808]
[1746727658616,0.2940378,101180.0,101170.0,1.26477825]
[1746727658805,0.0661,101180.0,101170.0,1.26477825]
[1746727659012,0.0342,101180.0,101170.0,1.71067825]
[1746727659410,0.0342,101180.0,101170.0,2.29067825]
[1746727659610,0.0332,101180.0,101170.0,1.84067825]
[1746727659817,0.0332,101180.0,101170.0,1.54162426]
[1746727660018,0.0322,101180.0,101170.0,1.71267825]
[1746727660219,0.0322,101180.0,101170.0,1.86267825]
[1746727660816,0.001,101180.0,101170.0,1.44677825]
[1746727661126,0.00247,101190.0,101180.0,0.1976378]
[1746727661321,0.00247,101190.0,101180.0,1.90107865]
[1746727661714,0.03547,101190.0,101180.0,1.90107865]
[1746727662216,0.2340883,101190.0,101180.0,1.90107865]
[1746727662415,0.2350883,101190.0,101180.0,1.90107865]
[1746727662614,0.2666883,101190.0,101180.0,1.4634778]
[1746727662818,0.2984883,101190.0,101180.0,1.63353179]
[1746727663023,0.2984883,101190.0,101180.0,1.66363179]
[1746727663318,0.4664883,101190.0,101180.0,1.66363179]
[1746727663513,0.4664883,101190.0,101180.0,1.56353565]
[1746727663720,0.4664883,101190.0,101180.0,1.01348166]
[1746727664313,0.4664883,101190.0,101180.0,0.78454386]
[1746727664517,0.4664883,101190.0,101180.0,0.98218166]
[1746727665014,0.4664883,101190.0,101180.0,0.56628166]
[1746727665216,0.4664883,101190.0,101180.0,0.64412166]
[1746727665417,0.4911883,101190.0,101180.0,0.64412166]
[1746727666221,1.3098583,101190.0,101180.0,0.64412166]
[1746727666415,1.47991229,101190.0,101180.0,0.44648386]
[1746727667117,1.47991229,101190.0,101180.0,0.64412166]
[1746727667517,1.3098583,101190.0,101180.0,0.64412166]
[1746727667718,1.3098583,101190.0,101180.0,0.67732166]
[1746727668025,1.3098583,101190.0,101180.0,0.71566968]
[1746727668713,1.3098583,101190.0,101180.0,0.92566968]
[1746727669923,1.3098583,101190.0,101180.0,0.84782968]
[1746727670123,1.3098583,101190.0,101180.0,1.09572367]
[1746727670428,1.01584,101190.0,101180.0,1.09572367]
[1746727670614,1.01584,101190.0,101180.0,1.27572367]
[1746727671119,0.84784,101190.0,101180.0,1.27572367]
[1746727671316,1.0454583,101190.0,101180.0,1.27572367]
[1746727671817,0.2267883,101190.0,101180.0,1.27572367]
[1746727672018,0.2594883,101190.0,101180.0,1.27572367]
[1746727672218,0.4274883,101190.0,101180.0,1.27572367]
[1746727673225,0.2594883,101190.0,101180.0,1.27572367]
[1746727673420,0.2594883,101190.0,101180.0,1.29116912]
[1746727673620,0.02917,101190.0,101180.0,1.29116912]
[1746727677022,0.02917,101190.0,101180.0,1.2911685]
[1746727678729,0.02917,101190.0,101180.0,1.29116851]
[1746727680025,0.02917,101190.0,101180.0,1.70706851]
[1746727680719,0.2267883,101190.0,101180.0,1.7070685]
[1746727680918,0.02917,101190.0,101180.0,1.7070685]
[1746727681421,0.02917,101190.0,101180.0,1.87712249]
[1746727681917,0.0003488,101190.0,101180.0,1.46122249]
[1746727682126,0.09997472,101210.0,101200.0,0.1975988]
[1746727682321,0.09997472,101210.0,101200.0,1.66033762]
[1746727682622,0.09997472,101210.0,101200.0,1.85223762]
[1746727682826,0.09997472,101210.0,101200.0,1.88453762]
[1746727683328,0.29755392,101210.0,101200.0,1.71448363]
[1746727683528,0.30055392,101210.0,101200.0,1.88453505]
[1746727683722,0.10297472,101210.0,101200.0,1.88453505]
[1746727683918,0.30055392,101210.0,101200.0,1.88453505]
[1746727684123,0.30355392,101210.0,101200.0,1.88453505]
[1746727684524,0.36705392,101210.0,101200.0,1.88453505]
[1746727684724,0.36705392,101210.0,101200.0,1.80673505]
[1746727685130,0.39715392,101210.0,101200.0,1.54444106]
[1746727686130,0.56515392,101210.0,101200.0,1.71449505]
[1746727686833,0.4651792,101210.0,101200.0,1.71449505]
[1746727687221,0.0996,101210.0,101200.0,1.71449505]
[1746727687423,0.2035792,101210.0,101200.0,1.71449505]
[1746727687629,0.006,101210.0,101200.0,1.71449505]
[1746727687827,0.006,101210.0,101200.0,1.91449505]
[1746727688735,0.006,101210.0,101200.0,1.74444106]
[1746727689037,0.006,101210.0,101200.0,1.91449505]
[1746727690532,0.006,101210.0,101200.0,1.91449478]
[1746727690736,0.006,101210.0,101200.0,1.83669478]
[1746727691036,0.2659792,101210.0,101200.0,1.91445478]
[1746727691236,0.4339792,101210.0,101200.0,1.91445478]
[1746727691829,0.4339792,101210.0,101200.0,2.33035478]
[1746727692229,0.4339792,101210.0,101200.0,2.33035546]
[1746727692536,0.4339792,101210.0,101200.0,2.08254147]
[1746727692732,0.4339792,101210.0,101200.0,1.97244147]
[1746727692933,0.4339792,101210.0,101200.0,2.05020147]
[1746727693231,0.4339792,101210.0,101200.0,2.05020198]
[1746727693436,0.4339792,101210.0,101200.0,2.0656588]
[1746727693642,0.4339792,101210.0,101200.0,2.23571279]
[1746727694537,0.4339792,101210.0,101200.0,2.0656588]
[1746727695440,0.4339792,101210.0,101200.0,2.08110196]
[1746727696637,0.4339792,101210.0,101200.0,2.25115595]
[1746727696936,0.2052,101210.0,101200.0,2.25115595]
[1746727697141,0.0372,101210.0,101200.0,2.25115595]
[1746727697435,0.0372,101210.0,101200.0,2.23571279]
[1746727697651,0.0372,101210.0,101200.0,2.25115536]
[1746727697830,0.0372,101210.0,101200.0,1.83525536]
[1746727698439,0.0687,101210.0,101200.0,1.83525536]
[1746727699328,0.0687,101210.0,101200.0,1.83525537]
[1746727699634,0.0687,101210.0,101200.0,2.28525537]
[1746727700538,0.0372,101210.0,101200.0,2.28525537]
[1746727701026,0.0372,101210.0,101200.0,2.28525482]
[1746727701643,0.0372,101210.0,101200.0,2.28525454]
[1746727702335,0.006,101210.0,101200.0,2.28525454]
[1746727702729,0.006,101210.0,101200.0,2.26981279]
[1746727703036,0.006,101210.0,101200.0,2.28525446]
[1746727703635,0.03267,101220.0,101210.0,0.1975792]
[1746727703829,0.03267,101220.0,101210.0,1.49793486]
[1746727704234,0.03267,101220.0,101210.0,1.94793486]
[1746727704539,0.03267,101220.0,101210.0,1.94793354]
[1746727704739,0.04467,101220.0,101210.0,1.94793354]
[1746727705538,0.07717,101220.0,101210.0,1.94793354]
[1746727707343,0.01447,101220.0,101210.0,1.94793354]
[1746727708041,0.01447,101220.0,101210.0,1.94793358]
[1746727709843,0.01447,101220.0,101210.0,1.94793355]
[1746727711042,0.01447,101220.0,101210.0,2.36383355]
[1746727711643,0.01447,101220.0,101210.0,2.36383354]
[1746727715044,0.01447,101220.0,101210.0,2.36383247]
[1746727715446,0.01447,101220.0,101210.0,2.53388646]
[1746727717041,0.00847,101220.0,101210.0,2.53388646]
[1746727717247,0.00647,101220.0,101210.0,2.53388646]
[1746727718538,0.00647,101220.0,101210.0,2.53388561]
[1746727721136,0.00647,101220.0,101210.0,2.53388582]
[1746727722153,0.00647,101220.0,101210.0,2.53388579]
[1746727723953,0.00647,101220.0,101210.0,2.53388583]
[1746727724550,0.00647,101220.0,101210.0,2.53388582]
[1746727725151,0.03867,101220.0,101210.0,2.36375183]
[1746727725552,0.03867,101220.0,101210.0,2.53380582]
[1746727725756,0.00647,101220.0,101210.0,2.53380582]
[1746727726855,0.03867,101220.0,101210.0,2.53380582]
[1746727727459,0.00647,101220.0,101210.0,2.53380582]
[1746727727751,0.0322,101230.0,101220.0,0.1975597]
[1746727727952,0.10245723,101250.0,101240.0,0.1975207]
[1746727728148,0.00248251,101250.0,101240.0,1.61918732]
[1746727728452,0.29009605,101260.0,101250.0,0.1975012]
[1746727728453,0.16497472,101260.0,101250.0,0.1975012]
[1746727728663,0.16497472,101260.0,101250.0,1.53834782]
[1746727729355,0.33297472,101260.0,101250.0,1.36829383]
[1746727729554,0.33297472,101260.0,101250.0,1.37621367]
[1746727729861,0.53545642,101260.0,101250.0,1.31171367]
[1746727730051,0.53545642,101260.0,101250.0,1.04933968]
[1746727730551,0.53945642,101260.0,101250.0,0.97165968]
[1746727730751,0.53945642,101260.0,101250.0,1.04933968]
[1746727730953,0.57055642,101260.0,101250.0,1.04933968]
[1746727732353,0.74061041,101260.0,101250.0,1.03390521]
[1746727732657,0.57055642,101260.0,101250.0,1.03390521]
[1746727732860,1.38922642,101260.0,101250.0,0.64390521]
[1746727733257,1.38922642,101260.0,101250.0,0.6359812]
[1746727733664,1.38922642,101260.0,101250.0,0.64389163]
[1746727734263,1.38922642,101260.0,101250.0,0.6359812]
[1746727735662,1.38922642,101260.0,101250.0,0.64336617]
[1746727737765,1.38922642,101260.0,101250.0,0.65110789]
[1746727738365,1.38922642,101260.0,101250.0,0.57342789]
[1746727738568,1.38922642,101260.0,101250.0,0.65106789]
[1746727738862,1.38922642,101260.0,101250.0,0.64332617]
[1746727739368,1.65804041,101260.0,101250.0,0.44582497]
[1746727739562,1.48798642,101260.0,101250.0,0.64332617]
[1746727740770,1.3880117,101260.0,101250.0,0.6511617]
[1746727741069,1.3880117,101260.0,101250.0,0.64332617]
[1746727741367,1.3880117,101260.0,101250.0,0.44582497]
[1746727742965,1.48798642,101260.0,101250.0,0.44582497]
[1746727743267,1.65804041,101260.0,101250.0,0.44582497]
[1746727743468,1.65804041,101260.0,101250.0,0.64332617]
[1746727743677,1.65804041,101260.0,101250.0,0.44582497]
[1746727743867,2.01884041,101260.0,101250.0,0.08502497]
[1746727746572,2.04398702,101260.0,101250.0,0.08502497]
[1746727747070,2.04398702,101260.0,101250.0,0.00738497]
[1746727747269,0.1975012,101250.0,101240.0,0.43844]
[1746727747470,0.42975519,101250.0,101240.0,0.43844]
[1746727747670,0.52852719,101250.0,101240.0,0.43844]
[1746727748265,0.69652719,101250.0,101240.0,0.43844]
[1746727748575,0.69852719,101250.0,101240.0,0.43844]
[1746727749174,1.51719719,101250.0,101240.0,0.43844]
[1746727749473,1.51719719,101250.0,101240.0,0.44597105]
[1746727749776,1.41842519,101250.0,101240.0,0.44597105]
[1746727749974,1.54354652,101250.0,101240.0,0.44597105]
[1746727750467,1.54354652,101250.0,101240.0,0.64349175]
[1746727750673,1.54654652,101250.0,101240.0,0.44589105]
[1746727750867,1.54954652,101250.0,101240.0,0.44589105]
[1746727751067,1.37949253,101250.0,101240.0,0.44589105]
[1746727751268,1.54954652,101250.0,101240.0,0.47789105]
[1746727752070,1.37949253,101250.0,101240.0,0.47789105]
[1746727752577,1.37949253,101250.0,101240.0,0.67541175]
[1746727752973,1.37949253,101250.0,101240.0,0.70631175]
[1746727754474,1.37949253,101250.0,101240.0,0.67541175]
[1746727754475,1.5242148,101250.0,101240.0,0.67541175]
[1746727754678,1.35416081,101250.0,101240.0,0.67541175]